[Event "Late-Titled-Tuesday-Blitz-March-12-2024"]
[Site "Chess.com"]
[Date "2024.03.12"]
[Round "2"]
[White "Mackster23"]
[Black "Szparu"]
[Result "0-1"]
[WhiteElo "2569"]
[BlackElo "2808"]
[TimeControl "180+1"]
[EndTime "14:15:16 PDT"]
[Termination "Szparu won by resignation"]

1. e4 {[%clk 0:03:00.9]} 1... c5 {[%clk 0:02:59.5]} 2. Nf3 {[%clk 0:03:00.9]}
2... a6 {[%clk 0:02:59.8]} 3. c4 {[%clk 0:02:59.9]} 3... Nc6 {[%clk 0:02:59.4]}
4. d4 {[%clk 0:02:55.8]} 4... cxd4 {[%clk 0:03:00.3]} 5. Nxd4 {[%clk 0:02:56.2]}
5... e5 {[%clk 0:03:00.9]} 6. Nc2 {[%clk 0:02:54.7]} 6... Bc5 {[%clk 0:02:59.5]}
7. Nc3 {[%clk 0:02:52.6]} 7... d6 {[%clk 0:02:58.6]} 8. b4 {[%clk 0:02:50]} 8...
Bxb4 {[%clk 0:02:24.6]} 9. Nxb4 {[%clk 0:02:46.5]} 9... Nxb4 {[%clk 0:02:25.5]}
10. Ba3 {[%clk 0:02:33.3]} 10... Qa5 {[%clk 0:02:19.3]} 11. Bb2 {[%clk
0:01:51.3]} 11... Nf6 {[%clk 0:02:17.7]} 12. Be2 {[%clk 0:01:00.3]} 12... Be6
{[%clk 0:02:13.7]} 13. O-O {[%clk 0:00:58]} 13... O-O {[%clk 0:02:13.3]} 14. Qb3
{[%clk 0:00:41.1]} 14... Rac8 {[%clk 0:01:38.3]} 15. Rac1 {[%clk 0:00:17.3]}
15... Nc6 {[%clk 0:01:34.6]} 16. Qxb7 {[%clk 0:00:12.4]} 16... Nd4 {[%clk
0:01:29.8]} 17. Bd3 {[%clk 0:00:06]} 17... Rc7 {[%clk 0:01:24.8]} 0-1

[Event "Late-Titled-Tuesday-Blitz-March-12-2024"]
[Site "Chess.com"]
[Date "2024.03.12"]
[Round "2"]
[White "DraningWaterHi"]
[Black "CarlosjPineror"]
[Result "1-0"]
[WhiteElo "2240"]
[BlackElo "2590"]
[TimeControl "180+1"]
[EndTime "14:15:19 PDT"]
[Termination "DraningWaterHi won by resignation"]

1. d4 {[%clk 0:03:00.9]} 1... Nf6 {[%clk 0:02:59]} 2. Bf4 {[%clk 0:03:01.2]}
2... e6 {[%clk 0:02:57.5]} 3. Nd2 {[%clk 0:03:00.6]} 3... d5 {[%clk 0:02:56]} 4.
Ngf3 {[%clk 0:03:01.1]} 4... Bd6 {[%clk 0:02:55.1]} 5. e3 {[%clk 0:03:01.4]}
5... Bxf4 {[%clk 0:02:53.2]} 6. exf4 {[%clk 0:03:02.3]} 6... c5 {[%clk
0:02:50.2]} 7. c3 {[%clk 0:03:02.4]} 7... cxd4 {[%clk 0:02:49.1]} 8. cxd4 {[%clk
0:03:02.6]} 8... Nc6 {[%clk 0:02:49.3]} 9. g3 {[%clk 0:03:02.9]} 9... Bd7 {[%clk
0:02:48.8]} 10. Bb5 {[%clk 0:03:02.4]} 10... Qb6 {[%clk 0:02:49.2]} 11. Bxc6
{[%clk 0:03:02.3]} 11... Bxc6 {[%clk 0:02:49.3]} 12. Nb3 {[%clk 0:03:02.5]}
12... Bb5 {[%clk 0:02:47.4]} 13. Ne5 {[%clk 0:02:59.2]} 13... O-O {[%clk
0:02:45.8]} 14. f3 {[%clk 0:02:58.7]} 14... Rac8 {[%clk 0:02:39.9]} 15. Qd2
{[%clk 0:02:57]} 15... Bc4 {[%clk 0:02:37.4]} 16. Nc1 {[%clk 0:02:52.4]} 16...
Rc7 {[%clk 0:02:33.8]} 17. b3 {[%clk 0:02:46.8]} 17... Ba6 {[%clk 0:02:33.1]}
18. Ne2 {[%clk 0:02:45.1]} 18... Rfc8 {[%clk 0:02:32.4]} 19. Rc1 {[%clk
0:02:43.2]} 19... g6 {[%clk 0:02:11.4]} 20. Kf2 {[%clk 0:02:41.8]} 20... Bxe2
{[%clk 0:01:58.5]} 21. Kxe2 {[%clk 0:02:40.1]} 21... Qa6+ {[%clk 0:01:50.6]} 22.
Ke3 {[%clk 0:02:37.8]} 22... Rxc1 {[%clk 0:01:50.9]} 23. Rxc1 {[%clk 0:02:38.3]}
23... Rxc1 {[%clk 0:01:51.2]} 24. Qxc1 {[%clk 0:02:39.2]} 24... Qxa2 {[%clk
0:01:51.6]} 25. Qc8+ {[%clk 0:02:39]} 25... Kg7 {[%clk 0:01:51.4]} 26. Qxb7
{[%clk 0:02:39.5]} 26... Kh6 {[%clk 0:01:09.5]} 27. Nxf7+ {[%clk 0:02:34.7]}
27... Kh5 {[%clk 0:01:09.8]} 28. g4+ {[%clk 0:02:33.7]} 28... Kh4 {[%clk
0:01:09.4]} 29. Ne5 {[%clk 0:02:19.1]} 29... Kh3 {[%clk 0:00:49.8]} 30. Qb4
{[%clk 0:02:11]} 30... a5 {[%clk 0:00:39.5]} 31. Qc3 {[%clk 0:02:08.9]} 31...
Ne8 {[%clk 0:00:31.6]} 32. Qd3 {[%clk 0:02:04]} 32... Nd6 {[%clk 0:00:22.2]} 33.
Qf1+ {[%clk 0:01:53]} 33... Kxh2 {[%clk 0:00:21.2]} 34. Qe2+ {[%clk 0:01:53.3]}
34... Qxe2+ {[%clk 0:00:21.1]} 35. Kxe2 {[%clk 0:01:53.7]} 35... Nb5 {[%clk
0:00:21.3]} 36. Kd3 {[%clk 0:01:54.6]} 36... h5 {[%clk 0:00:17.9]} 37. Nxg6
{[%clk 0:01:53.3]} 37... h4 {[%clk 0:00:18.3]} 38. Nxh4 {[%clk 0:01:52]} 1-0

[Event "Late-Titled-Tuesday-Blitz-March-12-2024"]
[Site "Chess.com"]
[Date "2024.03.12"]
[Round "2"]
[White "rynos0411"]
[Black "Kopytkin"]
[Result "0-1"]
[WhiteElo "2609"]
[BlackElo "2437"]
[TimeControl "180+1"]
[EndTime "14:15:19 PDT"]
[Termination "Kopytkin won by resignation"]

1. e4 {[%clk 0:03:00.9]} 1... Nf6 {[%clk 0:02:59.9]} 2. e5 {[%clk 0:02:58.4]}
2... Nd5 {[%clk 0:03:00]} 3. d4 {[%clk 0:02:54.7]} 3... d6 {[%clk 0:02:59.1]} 4.
c4 {[%clk 0:02:53.1]} 4... Nb6 {[%clk 0:02:59.1]} 5. exd6 {[%clk 0:02:53.6]}
5... cxd6 {[%clk 0:03:00]} 6. Nf3 {[%clk 0:02:51]} 6... g6 {[%clk 0:03:00.2]} 7.
Be3 {[%clk 0:02:50.3]} 7... Bg7 {[%clk 0:03:00.3]} 8. Qd2 {[%clk 0:02:50.6]}
8... Bg4 {[%clk 0:02:55.5]} 9. b3 {[%clk 0:02:44]} 9... Bxf3 {[%clk 0:02:51.9]}
10. gxf3 {[%clk 0:02:44.9]} 10... Nc6 {[%clk 0:02:51.8]} 11. Nc3 {[%clk
0:02:44.8]} 11... O-O {[%clk 0:02:46.1]} 12. Be2 {[%clk 0:02:40.2]} 12... e5
{[%clk 0:02:42.5]} 13. dxe5 {[%clk 0:02:35.2]} 13... dxe5 {[%clk 0:02:35.8]} 14.
Nd5 {[%clk 0:02:28.2]} 14... Nxd5 {[%clk 0:02:34.8]} 15. cxd5 {[%clk 0:02:28.3]}
15... Nd4 {[%clk 0:02:34.9]} 16. Bxd4 {[%clk 0:02:08.9]} 16... exd4 {[%clk
0:02:35.8]} 17. Bc4 {[%clk 0:02:08.1]} 17... Re8+ {[%clk 0:02:33.5]} 18. Kf1
{[%clk 0:02:04.8]} 18... Qh4 {[%clk 0:02:23.9]} 19. h3 {[%clk 0:01:44.3]} 19...
Bh6 {[%clk 0:02:22.3]} 20. Qd3 {[%clk 0:01:42.2]} 20... a6 {[%clk 0:02:07.6]}
21. a4 {[%clk 0:01:42.1]} 21... Re5 {[%clk 0:01:53]} 22. Re1 {[%clk 0:01:38.3]}
22... Rxe1+ {[%clk 0:01:51.1]} 23. Kxe1 {[%clk 0:01:39.2]} 23... Be3 {[%clk
0:01:42]} 24. Rh2 {[%clk 0:01:32.5]} 24... b5 {[%clk 0:01:23.9]} 25. Qe4 {[%clk
0:01:07.5]} 25... Qxe4 {[%clk 0:01:05.4]} 26. fxe4 {[%clk 0:01:08.4]} 26... Bf4
{[%clk 0:01:05.7]} 27. Rg2 {[%clk 0:01:06]} 27... bxc4 {[%clk 0:01:05.8]} 28.
bxc4 {[%clk 0:01:06.5]} 28... Rc8 {[%clk 0:01:03.9]} 29. Rg4 {[%clk 0:01:05.8]}
29... g5 {[%clk 0:01:03.3]} 30. h4 {[%clk 0:01:05.7]} 30... h6 {[%clk
0:01:03.5]} 0-1

[Event "Late-Titled-Tuesday-Blitz-March-12-2024"]
[Site "Chess.com"]
[Date "2024.03.12"]
[Round "2"]
[White "BlueWizzard"]
[Black "falzehope0"]
[Result "1-0"]
[WhiteElo "2884"]
[BlackElo "2447"]
[TimeControl "180+1"]
[EndTime "14:15:21 PDT"]
[Termination "BlueWizzard won by resignation"]

1. d4 {[%clk 0:03:00.9]} 1... d6 {[%clk 0:02:57.2]} 2. Nc3 {[%clk 0:03:01.8]}
2... Nf6 {[%clk 0:02:56.7]} 3. h3 {[%clk 0:03:01]} 3... Nbd7 {[%clk 0:02:56.5]}
4. g4 {[%clk 0:03:01.1]} 4... h6 {[%clk 0:02:56.5]} 5. Bg2 {[%clk 0:02:57.8]}
5... e5 {[%clk 0:02:56.6]} 6. Nf3 {[%clk 0:02:57.3]} 6... c6 {[%clk 0:02:56.5]}
7. e4 {[%clk 0:02:56.9]} 7... Be7 {[%clk 0:02:56.4]} 8. Be3 {[%clk 0:02:56.5]}
8... Qa5 {[%clk 0:02:54.9]} 9. Qd2 {[%clk 0:02:55.5]} 9... b5 {[%clk 0:02:40.2]}
10. a3 {[%clk 0:02:54.8]} 10... b4 {[%clk 0:02:39.7]} 11. Ne2 {[%clk 0:02:48.2]}
11... c5 {[%clk 0:02:38.6]} 12. dxe5 {[%clk 0:02:41.9]} 12... Nxe5 {[%clk
0:02:27]} 13. Nxe5 {[%clk 0:02:34.2]} 13... dxe5 {[%clk 0:02:27.9]} 14. O-O
{[%clk 0:02:29.5]} 14... Qb5 {[%clk 0:02:15.8]} 15. axb4 {[%clk 0:02:26.9]}
15... cxb4 {[%clk 0:02:13.1]} 16. f4 {[%clk 0:02:21.3]} 16... O-O {[%clk
0:01:58.3]} 17. fxe5 {[%clk 0:02:14.8]} 17... Qxe5 {[%clk 0:01:57.4]} 18. Bd4
{[%clk 0:02:14.9]} 18... Bc5 {[%clk 0:01:48.4]} 19. c3 {[%clk 0:02:15.1]} 19...
bxc3 {[%clk 0:01:46.5]} 20. bxc3 {[%clk 0:02:16]} 20... Re8 {[%clk 0:01:00.2]}
21. Qe3 {[%clk 0:02:11.2]} 21... Nd7 {[%clk 0:00:45.6]} 22. Rf5 {[%clk
0:01:56.6]} 22... Bxd4 {[%clk 0:00:43.4]} 23. cxd4 {[%clk 0:01:57.5]} 23... Qe7
{[%clk 0:00:42.4]} 24. Raf1 {[%clk 0:01:56.7]} 24... Rf8 {[%clk 0:00:40.4]} 25.
Ng3 {[%clk 0:01:53.3]} 25... Bb7 {[%clk 0:00:40.1]} 26. g5 {[%clk 0:01:47.6]}
26... g6 {[%clk 0:00:36.3]} 27. gxh6 {[%clk 0:01:32.7]} 27... gxf5 {[%clk
0:00:26.9]} 28. Nxf5 {[%clk 0:01:33.2]} 28... Qf6 {[%clk 0:00:20.6]} 29. e5
{[%clk 0:01:33.7]} 29... Qb6 {[%clk 0:00:16.2]} 30. Qg3+ {[%clk 0:01:32.7]} 1-0

[Event "Late-Titled-Tuesday-Blitz-March-12-2024"]
[Site "Chess.com"]
[Date "2024.03.12"]
[Round "2"]
[White "lamomiajunior"]
[Black "Der_Balak_3Halak"]
[Result "1-0"]
[WhiteElo "2783"]
[BlackElo "2457"]
[TimeControl "180+1"]
[EndTime "14:15:23 PDT"]
[Termination "lamomiajunior won by resignation"]

1. d4 {[%clk 0:02:58.7]} 1... d5 {[%clk 0:03:00.3]} 2. c4 {[%clk 0:02:58.6]}
2... c6 {[%clk 0:03:00.8]} 3. Nc3 {[%clk 0:02:58.9]} 3... Nf6 {[%clk 0:03:01.5]}
4. Nf3 {[%clk 0:02:59.5]} 4... e6 {[%clk 0:03:01.7]} 5. Bg5 {[%clk 0:02:58.6]}
5... Be7 {[%clk 0:03:01.9]} 6. e3 {[%clk 0:02:58.5]} 6... O-O {[%clk 0:03:01.9]}
7. Bd3 {[%clk 0:02:59.1]} 7... dxc4 {[%clk 0:03:02.4]} 8. Bxc4 {[%clk
0:02:59.4]} 8... Nbd7 {[%clk 0:03:03.3]} 9. O-O {[%clk 0:02:57.8]} 9... b5
{[%clk 0:03:03.5]} 10. Bd3 {[%clk 0:02:55.7]} 10... Bb7 {[%clk 0:03:02.4]} 11.
Rc1 {[%clk 0:02:55]} 11... a6 {[%clk 0:03:02.3]} 12. Bxf6 {[%clk 0:02:54.2]}
12... Nxf6 {[%clk 0:03:02.3]} 13. Ne4 {[%clk 0:02:55.1]} 13... Nxe4 {[%clk
0:02:53.9]} 14. Bxe4 {[%clk 0:02:56]} 14... Rc8 {[%clk 0:02:54.3]} 15. Ne5
{[%clk 0:02:55.4]} 15... Qd6 {[%clk 0:02:38.6]} 16. Qc2 {[%clk 0:02:51.8]} 16...
Rc7 {[%clk 0:02:32.1]} 17. Bxh7+ {[%clk 0:02:50.7]} 17... Kh8 {[%clk 0:02:31.9]}
18. Be4 {[%clk 0:02:51.3]} 18... Bf6 {[%clk 0:02:14.7]} 19. Qe2 {[%clk
0:02:46.2]} 19... g6 {[%clk 0:02:07.7]} 20. Nd3 {[%clk 0:02:46.5]} 20... Kg7
{[%clk 0:02:03]} 21. f4 {[%clk 0:02:42.7]} 21... Rd8 {[%clk 0:01:36.7]} 22. Nc5
{[%clk 0:02:42.2]} 22... Bc8 {[%clk 0:01:35.1]} 23. Bf3 {[%clk 0:02:38.8]} 23...
a5 {[%clk 0:01:33.2]} 24. Rfd1 {[%clk 0:02:37.5]} 24... b4 {[%clk 0:01:20.4]}
25. Ne4 {[%clk 0:02:37.2]} 25... Qe7 {[%clk 0:01:19]} 26. Nxf6 {[%clk
0:02:37.2]} 26... Qxf6 {[%clk 0:01:19.9]} 27. Rc5 {[%clk 0:02:35.8]} 27... a4
{[%clk 0:00:50]} 28. Rdc1 {[%clk 0:02:35.7]} 28... Bb7 {[%clk 0:00:43.2]} 29.
Qc4 {[%clk 0:02:33.3]} 29... Ra8 {[%clk 0:00:40.1]} 30. Qxb4 {[%clk 0:02:33.2]}
30... Qe7 {[%clk 0:00:32]} 31. Qc3 {[%clk 0:02:31.3]} 31... a3 {[%clk
0:00:27.6]} 32. b4 {[%clk 0:02:27.8]} 32... Ba6 {[%clk 0:00:20.7]} 33. b5 {[%clk
0:02:28.2]} 33... Bxb5 {[%clk 0:00:18.5]} 34. Rxb5 {[%clk 0:02:28.2]} 34... cxb5
{[%clk 0:00:19.2]} 35. Qxc7 {[%clk 0:02:27.1]} 35... Qxc7 {[%clk 0:00:18]} 36.
Rxc7 {[%clk 0:02:28]} 36... Rb8 {[%clk 0:00:18.8]} 37. Bd1 {[%clk 0:02:25.5]}
37... b4 {[%clk 0:00:16]} 38. Bb3 {[%clk 0:02:25.6]} 38... Rb5 {[%clk
0:00:16.4]} 39. Kf2 {[%clk 0:02:25.2]} 39... Kf6 {[%clk 0:00:16.9]} 40. Rc5
{[%clk 0:02:24.6]} 40... Rb6 {[%clk 0:00:16.6]} 41. e4 {[%clk 0:02:24.9]} 41...
Ke7 {[%clk 0:00:16.8]} 42. Ke3 {[%clk 0:02:25.2]} 42... Kd6 {[%clk 0:00:17.3]}
43. e5+ {[%clk 0:02:25.5]} 43... Ke7 {[%clk 0:00:17.7]} 44. Kd3 {[%clk
0:02:26.1]} 44... Rb7 {[%clk 0:00:17.3]} 45. h4 {[%clk 0:02:26.2]} 45... Kf8
{[%clk 0:00:17.1]} 46. g3 {[%clk 0:02:26.8]} 46... Kg7 {[%clk 0:00:18]} 47. d5
{[%clk 0:02:26.1]} 47... Kh6 {[%clk 0:00:18.9]} 48. d6 {[%clk 0:02:26.3]} 48...
Kh5 {[%clk 0:00:18.6]} 49. Rc7 {[%clk 0:02:26.8]} 49... Kg4 {[%clk 0:00:19.5]}
50. Rxb7 {[%clk 0:02:26.9]} 50... Kxg3 {[%clk 0:00:19.6]} 51. Rxf7 {[%clk
0:02:27.6]} 1-0

[Event "Late-Titled-Tuesday-Blitz-March-12-2024"]
[Site "Chess.com"]
[Date "2024.03.12"]
[Round "2"]
[White "Alexm42100"]
[Black "tandaleo"]
[Result "0-1"]
[WhiteElo "2112"]
[BlackElo "2468"]
[TimeControl "180+1"]
[EndTime "14:15:30 PDT"]
[Termination "tandaleo won by resignation"]

1. d4 {[%clk 0:03:00.9]} 1... e6 {[%clk 0:02:56.3]} 2. c4 {[%clk 0:02:59.9]}
2... f5 {[%clk 0:02:56.3]} 3. Nf3 {[%clk 0:02:53.6]} 3... Nf6 {[%clk 0:02:56.7]}
4. Bg5 {[%clk 0:02:51.9]} 4... Be7 {[%clk 0:02:56.2]} 5. Nc3 {[%clk 0:02:51.4]}
5... O-O {[%clk 0:02:56.6]} 6. Bxf6 {[%clk 0:02:45.5]} 6... Bxf6 {[%clk
0:02:56.9]} 7. e4 {[%clk 0:02:45.6]} 7... fxe4 {[%clk 0:02:53.7]} 8. Nxe4 {[%clk
0:02:46.5]} 8... b6 {[%clk 0:02:53.2]} 9. Bd3 {[%clk 0:02:37.8]} 9... Bb7 {[%clk
0:02:53.4]} 10. Ne5 {[%clk 0:02:23.4]} 10... Nc6 {[%clk 0:02:46.4]} 11. Qh5
{[%clk 0:02:16]} 11... g6 {[%clk 0:02:29.7]} 12. Nxg6 {[%clk 0:01:47.3]} 12...
hxg6 {[%clk 0:02:23.1]} 13. Qxg6+ {[%clk 0:01:46]} 13... Bg7 {[%clk 0:02:23.5]}
14. Nd6 {[%clk 0:00:52.2]} 14... cxd6 {[%clk 0:02:06.9]} 15. Qh7+ {[%clk
0:00:44.3]} 15... Kf7 {[%clk 0:02:07.3]} 16. Qg6+ {[%clk 0:00:45]} 16... Ke7
{[%clk 0:02:04.9]} 17. Qxg7+ {[%clk 0:00:44.5]} 17... Rf7 {[%clk 0:02:05.3]} 18.
Qg5+ {[%clk 0:00:38.4]} 18... Kf8 {[%clk 0:02:02.5]} 19. Qh6+ {[%clk 0:00:32.2]}
19... Rg7 {[%clk 0:02:02.8]} 20. Qh8+ {[%clk 0:00:28.6]} 20... Rg8 {[%clk
0:02:02.1]} 21. Qh6+ {[%clk 0:00:28.1]} 21... Kf7 {[%clk 0:01:42.4]} 22. Qh5+
{[%clk 0:00:19.3]} 22... Kg7 {[%clk 0:01:37.7]} 23. Qh7+ {[%clk 0:00:18.1]}
23... Kf8 {[%clk 0:01:38.1]} 24. Qh6+ {[%clk 0:00:18.7]} 24... Rg7 {[%clk
0:01:31.3]} 25. Qh8+ {[%clk 0:00:18.8]} 25... Kf7 {[%clk 0:01:31.9]} 26. Qh5+
{[%clk 0:00:16.2]} 26... Kf6 {[%clk 0:01:26.5]} 27. Qh6+ {[%clk 0:00:14.3]}
27... Kf7 {[%clk 0:01:27]} 28. Qh5+ {[%clk 0:00:14]} 28... Kg8 {[%clk
0:01:24.4]} 0-1

[Event "Late-Titled-Tuesday-Blitz-March-12-2024"]
[Site "Chess.com"]
[Date "2024.03.12"]
[Round "2"]
[White "IamSchrodingersCat"]
[Black "ChessLover0108"]
[Result "0-1"]
[WhiteElo "2638"]
[BlackElo "2943"]
[TimeControl "180+1"]
[EndTime "14:15:31 PDT"]
[Termination "ChessLover0108 won by resignation"]

1. e4 {[%clk 0:03:00.9]} 1... c5 {[%clk 0:03:00.4]} 2. Nf3 {[%clk 0:03:00.4]}
2... d6 {[%clk 0:03:01]} 3. d4 {[%clk 0:03:00.2]} 3... cxd4 {[%clk 0:03:01.9]}
4. Nxd4 {[%clk 0:03:00.6]} 4... Nf6 {[%clk 0:03:01.8]} 5. Nc3 {[%clk 0:03:00.9]}
5... a6 {[%clk 0:03:02.5]} 6. Be2 {[%clk 0:03:00.7]} 6... e5 {[%clk 0:03:02.6]}
7. Nb3 {[%clk 0:03:01.1]} 7... Be7 {[%clk 0:03:03.3]} 8. g4 {[%clk 0:03:01.4]}
8... h6 {[%clk 0:03:01.7]} 9. Be3 {[%clk 0:03:01.4]} 9... Be6 {[%clk 0:03:00.2]}
10. Bf3 {[%clk 0:03:01.1]} 10... Nbd7 {[%clk 0:02:54.8]} 11. Qe2 {[%clk
0:03:00.6]} 11... b5 {[%clk 0:02:54.2]} 12. O-O-O {[%clk 0:02:59.6]} 12... Rc8
{[%clk 0:02:54.9]} 13. Nd5 {[%clk 0:02:48.1]} 13... Bxd5 {[%clk 0:02:54.9]} 14.
exd5 {[%clk 0:02:49]} 14... Nb6 {[%clk 0:01:46.9]} 15. Na5 {[%clk 0:02:25.1]}
15... Nbxd5 {[%clk 0:01:46.9]} 16. Nb7 {[%clk 0:01:48.2]} 16... Qc7 {[%clk
0:01:46.3]} 17. Rxd5 {[%clk 0:01:14.8]} 17... e4 {[%clk 0:01:35.7]} 18. Bxe4
{[%clk 0:01:11.2]} 18... Nxe4 {[%clk 0:01:05.6]} 19. Bf4 {[%clk 0:00:54]} 19...
Qxb7 {[%clk 0:01:04.4]} 20. Qxe4 {[%clk 0:00:52.2]} 20... Rc4 {[%clk 0:01:05]}
21. Rxb5 {[%clk 0:00:21.4]} 21... Qxe4 {[%clk 0:01:03.3]} 0-1

[Event "Late-Titled-Tuesday-Blitz-March-12-2024"]
[Site "Chess.com"]
[Date "2024.03.12"]
[Round "2"]
[White "djano"]
[Black "janhelmer03"]
[Result "1-0"]
[WhiteElo "2578"]
[BlackElo "2395"]
[TimeControl "180+1"]
[EndTime "14:15:38 PDT"]
[Termination "djano won on time"]

1. e4 {[%clk 0:02:59.2]} 1... c5 {[%clk 0:02:47.7]} 2. Nc3 {[%clk 0:02:59.2]}
2... Nc6 {[%clk 0:02:45.5]} 3. Bb5 {[%clk 0:02:58.5]} 3... g6 {[%clk 0:02:45.6]}
4. Nf3 {[%clk 0:02:56.7]} 4... Bg7 {[%clk 0:02:45.2]} 5. O-O {[%clk 0:02:57]}
5... e5 {[%clk 0:02:26.9]} 6. a4 {[%clk 0:02:53.3]} 6... Nge7 {[%clk 0:02:24.6]}
7. d3 {[%clk 0:02:50.4]} 7... h6 {[%clk 0:02:23.4]} 8. Nd5 {[%clk 0:02:44.7]}
8... d6 {[%clk 0:02:05.6]} 9. c3 {[%clk 0:02:44.7]} 9... O-O {[%clk 0:01:58.9]}
10. Bc4 {[%clk 0:02:44.9]} 10... Nxd5 {[%clk 0:01:58.1]} 11. Bxd5 {[%clk
0:02:45.8]} 11... Ne7 {[%clk 0:01:57.3]} 12. Bc4 {[%clk 0:02:44.5]} 12... d5
{[%clk 0:01:35.8]} 13. exd5 {[%clk 0:02:43.8]} 13... Nxd5 {[%clk 0:01:36.7]} 14.
Re1 {[%clk 0:02:41.8]} 14... Qd6 {[%clk 0:01:28]} 15. Qb3 {[%clk 0:02:39.4]}
15... Nb6 {[%clk 0:01:20.8]} 16. Be3 {[%clk 0:02:36.7]} 16... Nxc4 {[%clk
0:01:15.3]} 17. Qxc4 {[%clk 0:02:37.6]} 17... Be6 {[%clk 0:01:14.6]} 18. Qxc5
{[%clk 0:02:37.5]} 18... Qxd3 {[%clk 0:01:09.9]} 19. Nxe5 {[%clk 0:02:34.9]}
19... Qc2 {[%clk 0:00:58.5]} 20. Bd4 {[%clk 0:02:22.3]} 20... Rfc8 {[%clk
0:00:16.6]} 21. Qa3 {[%clk 0:02:14.5]} 21... Bf8 {[%clk 0:00:13.2]} 22. b4
{[%clk 0:02:14.5]} 22... a5 {[%clk 0:00:13]} 23. Bc5 {[%clk 0:02:00.5]} 23...
axb4 {[%clk 0:00:12.9]} 24. cxb4 {[%clk 0:01:58.2]} 24... Bxc5 {[%clk
0:00:12.3]} 25. bxc5 {[%clk 0:01:59]} 25... Rxc5 {[%clk 0:00:07.1]} 26. Nxg6
{[%clk 0:01:53.3]} 26... Rg5 {[%clk 0:00:07.1]} 27. Nf4 {[%clk 0:01:52.2]} 27...
Qc6 {[%clk 0:00:03.1]} 28. g3 {[%clk 0:01:47.9]} 28... Bf5 {[%clk 0:00:02.2]}
29. a5 {[%clk 0:01:41.8]} 29... Rg7 {[%clk 0:00:02.3]} 30. Rac1 {[%clk
0:01:41.3]} 30... Rf8 {[%clk 0:00:01.5]} 31. Rxc6 {[%clk 0:01:41.3]} 1-0

[Event "Late-Titled-Tuesday-Blitz-March-12-2024"]
[Site "Chess.com"]
[Date "2024.03.12"]
[Round "2"]
[White "emeli_chess"]
[Black "Payyappat"]
[Result "1-0"]
[WhiteElo "2390"]
[BlackElo "2552"]
[TimeControl "180+1"]
[EndTime "14:15:40 PDT"]
[Termination "emeli_chess won by resignation"]

1. d4 {[%clk 0:03:00.9]} 1... Nf6 {[%clk 0:02:59.9]} 2. c4 {[%clk 0:03:00.9]}
2... c5 {[%clk 0:03:00.4]} 3. d5 {[%clk 0:03:00.7]} 3... e6 {[%clk 0:03:01.3]}
4. Nc3 {[%clk 0:03:00.1]} 4... exd5 {[%clk 0:03:02.2]} 5. cxd5 {[%clk
0:03:00.7]} 5... d6 {[%clk 0:03:02.8]} 6. Nf3 {[%clk 0:03:00.9]} 6... g6 {[%clk
0:03:03.3]} 7. h3 {[%clk 0:03:01.2]} 7... Bg7 {[%clk 0:03:03.8]} 8. e4 {[%clk
0:03:01.4]} 8... O-O {[%clk 0:03:04.7]} 9. Bd3 {[%clk 0:03:01.5]} 9... b5 {[%clk
0:03:04.6]} 10. Nxb5 {[%clk 0:03:01.7]} 10... Nxe4 {[%clk 0:03:03.8]} 11. Bxe4
{[%clk 0:03:00.6]} 11... Re8 {[%clk 0:03:04.3]} 12. Ng5 {[%clk 0:03:00.9]} 12...
h6 {[%clk 0:02:47.7]} 13. Ne6 {[%clk 0:03:00.8]} 13... fxe6 {[%clk 0:02:32.4]}
14. O-O {[%clk 0:03:00.3]} 14... e5 {[%clk 0:02:29]} 15. Bxg6 {[%clk 0:02:59.7]}
15... Rf8 {[%clk 0:02:29.4]} 16. Qh5 {[%clk 0:02:56.8]} 16... Ba6 {[%clk
0:02:19.5]} 17. a4 {[%clk 0:02:22.9]} 17... Nd7 {[%clk 0:02:16.3]} 18. Bxh6
{[%clk 0:02:20.2]} 18... Nf6 {[%clk 0:02:16.4]} 19. Qh4 {[%clk 0:01:51]} 19...
Rb8 {[%clk 0:02:05.4]} 20. Bg5 {[%clk 0:01:31.4]} 20... Qd7 {[%clk 0:02:04.3]}
21. Ra3 {[%clk 0:01:27.6]} 21... Bxb5 {[%clk 0:01:58]} 22. axb5 {[%clk
0:01:27.4]} 22... Rxb5 {[%clk 0:01:58.9]} 23. Rg3 {[%clk 0:01:19.1]} 23... Rb4
{[%clk 0:01:52.2]} 24. f4 {[%clk 0:01:14.6]} 24... exf4 {[%clk 0:01:39]} 25.
Rxf4 {[%clk 0:01:08.7]} 25... Rxf4 {[%clk 0:01:38.7]} 26. Bxf4 {[%clk
0:01:07.7]} 26... Rb8 {[%clk 0:01:32]} 27. Rg5 {[%clk 0:00:49.9]} 27... Rb4
{[%clk 0:01:28.4]} 28. Bf5 {[%clk 0:00:49.4]} 28... Qe7 {[%clk 0:01:28]} 29.
Be6+ {[%clk 0:00:49.4]} 29... Kf8 {[%clk 0:01:28.2]} 30. Rf5 {[%clk 0:00:41]}
30... Ke8 {[%clk 0:01:24.6]} 31. Qg3 {[%clk 0:00:37]} 31... Kd8 {[%clk
0:01:17.3]} 32. Bxd6 {[%clk 0:00:36]} 32... Qb7 {[%clk 0:01:15.5]} 33. Rxf6
{[%clk 0:00:33.7]} 1-0

[Event "Late-Titled-Tuesday-Blitz-March-12-2024"]
[Site "Chess.com"]
[Date "2024.03.12"]
[Round "2"]
[White "Marcan2b"]
[Black "LornerAcosta"]
[Result "1-0"]
[WhiteElo "2930"]
[BlackElo "2618"]
[TimeControl "180+1"]
[EndTime "14:15:42 PDT"]
[Termination "Marcan2b won on time"]

1. e4 {[%clk 0:03:00.9]} 1... c5 {[%clk 0:02:57.8]} 2. Nf3 {[%clk 0:03:00.5]}
2... Nc6 {[%clk 0:02:57.7]} 3. Bb5 {[%clk 0:02:59.9]} 3... e6 {[%clk 0:02:57.8]}
4. O-O {[%clk 0:02:59.2]} 4... Nge7 {[%clk 0:02:57.5]} 5. Re1 {[%clk 0:02:59]}
5... a6 {[%clk 0:02:57.4]} 6. Bxc6 {[%clk 0:02:58.7]} 6... Nxc6 {[%clk 0:02:57]}
7. d4 {[%clk 0:02:59.6]} 7... cxd4 {[%clk 0:02:57.1]} 8. Nxd4 {[%clk 0:03:00.5]}
8... Qc7 {[%clk 0:02:55.8]} 9. Nc3 {[%clk 0:02:59.8]} 9... Bd6 {[%clk
0:02:53.9]} 10. g3 {[%clk 0:02:52.3]} 10... Nxd4 {[%clk 0:02:51.4]} 11. Qxd4
{[%clk 0:02:51.8]} 11... Be5 {[%clk 0:02:51.5]} 12. Qd3 {[%clk 0:02:50.2]} 12...
O-O {[%clk 0:02:50.8]} 13. Be3 {[%clk 0:02:48]} 13... b5 {[%clk 0:02:39.2]} 14.
Rad1 {[%clk 0:02:46]} 14... Rd8 {[%clk 0:02:32.9]} 15. Bd4 {[%clk 0:02:44.4]}
15... Bb7 {[%clk 0:02:10]} 16. a3 {[%clk 0:02:44.3]} 16... Rac8 {[%clk
0:01:59.5]} 17. Qe3 {[%clk 0:02:44.2]} 17... Bxd4 {[%clk 0:01:54]} 18. Rxd4
{[%clk 0:02:45.1]} 18... Bc6 {[%clk 0:01:47.4]} 19. Red1 {[%clk 0:02:44.1]}
19... Rf8 {[%clk 0:01:47]} 20. f4 {[%clk 0:02:32.4]} 20... f5 {[%clk 0:01:42.2]}
21. e5 {[%clk 0:02:32.2]} 21... Rfd8 {[%clk 0:01:37.5]} 22. Rd6 {[%clk
0:02:31.7]} 22... Rb8 {[%clk 0:01:30.7]} 23. Ne2 {[%clk 0:02:07.5]} 23... Ba8
{[%clk 0:01:26]} 24. Kf2 {[%clk 0:01:27.6]} 24... Qxc2 {[%clk 0:00:48.1]} 25.
Rxd7 {[%clk 0:01:26.8]} 25... Rxd7 {[%clk 0:00:16.5]} 26. Rxd7 {[%clk 0:01:26]}
26... Qc6 {[%clk 0:00:14.2]} 27. Qa7 {[%clk 0:01:24.2]} 27... Qf3+ {[%clk
0:00:10.9]} 28. Ke1 {[%clk 0:01:24.3]} 28... Qh1+ {[%clk 0:00:10.3]} 29. Kd2
{[%clk 0:01:24.2]} 1-0